bitfinex/quotes_SOLUSD_20251120
["timestamp","ask_amount","ask_price","bid_price","bid_amount"]
[1763609828248,1.66,143.35,143.34,0.1]
[1763609828971,1.66,143.35,143.34,7.7864197]
[1763609829669,1.66,143.35,143.34,36.08951754]
[1763609830057,1.66,143.35,143.34,18.64846829]
[1763609831650,1.16,143.35,143.34,18.64846829]
[1763609832172,1.16,143.35,143.34,7.7864197]
[1763609832563,1.16,143.35,143.34,0.81]
[1763609833247,1.16,143.35,143.34,0.1]
[1763609833762,8.82593303,143.35,143.34,0.1]
[1763609833952,37.80894162,143.35,143.34,0.1]
[1763609834265,26.94689303,143.35,143.34,0.1]
[1763609834469,37.80894162,143.35,143.34,0.1]
[1763609834854,37.11894162,143.35,143.34,0.1]
[1763609835274,37.61894162,143.35,143.34,0.1]
[1763609835460,38.30894162,143.35,143.34,0.1]
[1763609837268,1.66,143.35,143.34,7.78641143]
[1763609837572,1.66,143.35,143.34,18.64846002]
[1763609837948,13.21204859,143.35,143.34,0.1]
[1763609838150,1.66,143.35,143.34,0.1]
[1763609839562,1.66,143.35,143.34,0.81]
[1763609840065,1.66,143.35,143.34,0.1]
[1763609840446,1.66,143.35,143.34,7.7464197]
[1763609840672,1.66,143.35,143.34,14.76533036]
[1763609841258,16.37484369,143.35,143.34,0.1]
[1763609841455,9.39891066,143.35,143.34,0.1]
[1763609841785,7.01891066,143.36,143.34,0.1]
[1763609842079,8.67891066,143.35,143.34,0.1]
[1763609842250,27.51987066,143.35,143.34,0.1]
[1763609843363,34.49580369,143.35,143.34,0.1]
[1763609844647,43.2567256,143.35,143.32,0.1]
[1763609844849,7.01891066,143.33,143.32,0.1]
[1763609845352,14.71581709,143.33,143.27,7.01891066]
[1763609845875,7.01891066,143.32,143.27,7.01891066]
[1763609846174,1.66,143.31,143.27,7.01891066]
[1763609846362,7.01891066,143.32,143.27,7.01891066]
[1763609846565,1.66,143.31,143.27,7.01891066]
[1763609846756,1.66,143.3,143.27,7.01891066]
[1763609846957,1.66,143.3,143.28,7.01891066]
[1763609847278,1.66,143.3,143.29,6.97885407]
[1763609847449,1.66,143.3,143.28,6.97932615]
[1763609847649,1.66,143.3,143.27,6.97965649]
[1763609847847,1.66,143.3,143.27,7.64965649]
[1763609849870,1.66,143.3,143.28,0.67]
[1763609851902,1.66,143.3,143.28,7.64911868]
[1763609853177,1.66,143.3,143.27,2.62240474]
[1763609853372,1.66,143.3,143.27,3.29240474]
[1763609853957,1.66,143.3,143.27,0.67]
[1763609854358,1.66,143.3,143.26,59.60237974]
[1763609854668,1.66,143.3,143.26,60.27237974]
[1763609854864,18.12096,143.35,143.29,2.62240474]
[1763609855191,20.86362609,143.46,143.28,6.97920462]
[1763609855192,2.62240474,143.32,143.28,6.97920462]
[1763609855486,1.66,143.31,143.28,6.97920462]
[1763609855784,1.66,143.31,143.28,9.60160936]
[1763609856181,2.38,143.31,143.28,6.97920462]
[1763609856481,0.72,143.3,143.26,10.27259281]
[1763609856861,1.66,143.31,143.27,2.62240474]
[1763609857085,1.66,143.3,143.27,10.27177338]
[1763609857382,1.66,143.3,143.28,2.62240474]
[1763609857882,1.66,143.3,143.27,10.27177338]
[1763609858088,18.12096,143.32,143.29,2.62240474]
[1763609858284,1.66,143.31,143.29,2.62240474]
[1763609859175,1.66,143.31,143.29,9.60081068]
[1763609859370,1.66,143.31,143.29,10.27081068]
[1763609859780,1.66,143.31,143.29,7.64840594]
[1763609859972,20.74336474,143.34,143.29,27.04794586]
[1763609860281,2.38,143.33,143.29,27.71794586]
[1763609861167,1.66,143.33,143.29,27.71794586]
[1763609861377,2.38,143.33,143.29,27.71794586]
[1763609861584,2.38,143.33,143.29,25.09554112]
[1763609863288,2.38,143.33,143.29,27.71794586]
[1763609863488,2.38,143.33,143.3,0.67]
[1763609864291,1.66,143.34,143.32,2.62240474]
[1763609864474,1.66,143.34,143.33,2.62240474]
[1763609864890,1.66,143.34,143.32,3.29240474]
[1763609865288,1.66,143.34,143.33,6.97690643]
[1763609866395,1.66,143.34,143.33,10.26931117]
[1763609866989,1.66,143.34,143.32,0.67]
[1763609867191,1.66,143.34,143.32,3.29240474]
[1763609867374,1.66,143.34,143.32,10.26935164]
[1763609869191,1.66,143.34,143.32,9.59935164]
[1763609869881,1.66,143.34,143.32,10.26935164]
[1763609871287,1.66,143.34,143.33,3.33240474]
[1763609871871,1.66,143.34,143.33,2.62240474]
[1763609873293,1.66,143.34,143.33,9.59931117]
[1763609874184,1.66,143.34,143.33,6.97690643]
[1763609879907,12.76455823,143.45,143.35,50.0]
[1763609880106,0.72,143.43,143.38,2.62240474]
[1763609880317,18.12096,143.42,143.38,2.62240474]
[1763609880530,1.66,143.41,143.38,3.33240474]
[1763609881615,0.72,143.42,143.38,3.33240474]
[1763609881795,1.66,143.4,143.39,0.71]
[1763609881993,1.66,143.4,143.39,7.68398702]
[1763609882306,1.66,143.4,143.39,10.30639176]
[1763609883095,1.66,143.4,143.39,6.97398702]
[1763609883290,0.72,143.42,143.39,6.97398702]
[1763609883499,1.66,143.4,143.39,6.97398702]
[1763609884019,1.66,143.4,143.39,7.68398702]
[1763609884312,1.66,143.4,143.39,6.97398702]
[1763609885705,1.66,143.4,143.38,10.30675507]
[1763609885893,18.12096,143.44,143.38,6.97435033]
[1763609886092,1.66,143.47,143.4,9.78882769]
[1763609886319,2.38,143.47,143.46,18.12096]
[1763609886501,0.72,143.46,143.43,50.0]
[1763609886823,0.72,143.46,143.41,2.62240474]
[1763609886824,2.62240474,143.44,143.41,18.12096]
[1763609887030,0.72,143.46,143.41,18.12096]
[1763609887031,1.66,143.43,143.41,18.12096]
[1763609887192,0.72,143.45,143.41,18.12096]
[1763609887387,1.66,143.44,143.41,18.12096]
[1763609887714,1.66,143.43,143.41,25.09370687]
[1763609887889,1.66,143.42,143.41,18.12096]
[1763609888297,1.66,143.42,143.41,6.97301443]
[1763609888684,1.66,143.42,143.41,17.47184212]
[1763609888886,1.66,143.42,143.41,55.64774294]
[1763609889192,1.66,143.44,143.42,27.90978769]
[1763609889508,1.66,143.44,143.42,34.88200556]
[1763609889713,1.66,143.44,143.42,35.59200556]
[1763609891207,1.66,143.44,143.4,68.83096]
[1763609891508,0.72,143.43,143.4,132.84336474]
[1763609891705,0.72,143.43,143.39,2.62240474]
[1763609891917,0.72,143.43,143.38,115.43240474]
[1763609892284,2.62240474,143.41,143.34,18.15086984]
[1763609892515,1.66,143.4,143.35,9.59819196]
[1763609892719,0.72,143.39,143.35,6.97578722]
[1763609893409,3.34240474,143.39,143.33,6.97665078]
[1763609893612,10.31671172,143.39,143.33,6.97665078]
[1763609893801,0.72,143.38,143.33,19.38788321]
[1763609893996,8.63365709,143.4,143.35,2.62240474]
[1763609894206,0.72,143.39,143.35,2.62240474]
[1763609894612,0.72,143.39,143.34,3.33240474]
[1763609894808,1.66,143.38,143.34,3.33240474]
[1763609895194,0.72,143.37,143.35,6.97593303]
[1763609895395,0.72,143.37,143.33,29.85349852]
[1763609895396,0.72,143.37,143.34,6.97638252]
[1763609896620,0.72,143.37,143.33,6.97680417]
[1763609896818,0.72,143.37,143.32,17.47605237]
[1763609896994,3.34240474,143.37,143.32,6.97722468]
[1763609897315,10.31756358,143.37,143.32,6.97722468]
[1763609897507,0.72,143.36,143.32,6.97722468]
[1763609898515,7.69515884,143.37,143.33,0.71]
[1763609899024,0.72,143.36,143.33,0.71]
[1763609899416,0.72,143.36,143.31,61.78185815]
[1763609899720,0.72,143.36,143.32,0.71]
[1763609899892,0.72,143.36,143.31,57.66779235]
[1763609900092,0.72,143.36,143.31,61.76185815]
[1763609900625,0.72,143.36,143.31,57.66779235]
[1763609900626,7.69546804,143.36,143.31,57.66779235]
[1763609900789,0.72,143.36,143.31,57.66779235]
[1763609901516,0.72,143.36,143.31,56.97779235]
[1763609901824,4.0940658,143.35,143.3,6.97830141]
[1763609902127,5.7540658,143.34,143.3,6.97830141]
[1763609902307,1.66,143.34,143.3,6.97830141]
[1763609902491,2.34,143.34,143.3,7.66830141]
[1763609902687,8.63649801,143.34,143.3,7.66830141]
[1763609903000,0.68,143.33,143.29,25.09962429]
[1763609903199,0.68,143.33,143.29,25.78962429]
[1763609903703,0.68,143.33,143.29,29.88369009]
[1763609907122,0.68,143.33,143.29,91.98369009]
[1763609910317,0.68,143.33,143.29,73.86273009]
[1763609912127,7.65693765,143.33,143.29,73.86273009]
[1763609912514,0.68,143.33,143.29,73.86273009]
[1763609912916,7.65696963,143.33,143.29,69.07866429]
[1763609913638,0.68,143.32,143.29,69.07866429]
[1763609913934,1.66,143.31,143.29,69.07866429]
[1763609914405,2.34,143.31,143.29,69.07866429]
[1763609915530,1.66,143.31,143.29,69.07866429]
[1763609915735,2.34,143.31,143.29,69.07866429]
[1763609916037,2.34,143.31,143.29,73.17273009]
[1763609916038,1.66,143.31,143.29,73.17273009]
[1763609917829,2.34,143.31,143.29,73.17273009]
[1763609918206,1.66,143.31,143.29,73.17273009]
[1763609918931,2.34,143.31,143.29,73.17273009]
[1763609919229,2.34,143.31,143.29,69.07866429]
[1763609919402,1.66,143.31,143.29,62.1]
[1763609919602,2.34,143.31,143.29,62.1]
[1763609919927,9.31794615,143.31,143.29,62.1]
[1763609920618,8.63794615,143.31,143.29,62.1]
[1763609920819,9.31794615,143.31,143.29,62.1]
[1763609921016,2.34,143.31,143.29,62.1]
[1763609922132,1.66,143.31,143.29,66.1940658]
[1763609922337,0.68,143.3,143.29,66.1940658]
[1763609922634,9.31788828,143.31,143.29,66.1940658]
[1763609923214,2.34,143.31,143.29,66.1940658]
[1763609925638,2.34,143.31,143.29,62.1]
[1763609925935,1.66,143.31,143.29,62.08]
[1763609926524,2.34,143.31,143.29,62.08]
[1763609926720,0.68,143.31,143.29,62.08]
[1763609926951,1.66,143.3,143.29,62.08]
[1763609927346,41.85351488,143.37,143.29,62.08]
[1763609927347,0.68,143.37,143.3,27.90978769]
[1763609927516,1.66,143.36,143.33,4.0940658]
[1763609927930,2.34,143.36,143.33,4.7640658]
[1763609928134,2.34,143.36,143.33,4.7440658]
[1763609929145,1.66,143.35,143.33,4.7440658]
[1763609930337,1.66,143.35,143.32,4.7640658]
[1763609930837,1.66,143.35,143.32,66.8440658]
[1763609931238,2.38,143.35,143.32,66.8440658]
[1763609934133,0.72,143.34,143.32,62.08]
[1763609936622,7.6965404,143.34,143.32,62.08]
[1763609936821,7.6965404,143.34,143.3,91.94319202]
[1763609937440,0.72,143.33,143.3,62.08]
[1763609937725,1.66,143.32,143.3,62.08]
[1763609938140,0.72,143.31,143.3,62.08]
[1763609938349,0.72,143.31,143.28,69.05912814]
[1763609938546,0.72,143.31,143.28,73.82319394]
[1763609939626,1.66,143.3,143.28,73.82319394]
[1763609940123,11.07061962,143.34,143.28,73.15319394]
[1763609940342,2.38,143.33,143.29,0.67]
[1763609940548,6.97739324,143.32,143.28,73.15319394]
[1763609940750,8.63710778,143.33,143.29,0.67]
[1763609940954,0.72,143.32,143.29,0.67]
[1763609941745,0.72,143.32,143.28,73.82319394]
[1763609942349,0.72,143.32,143.28,90.60154681]
[1763609942531,0.72,143.32,143.29,4.7640658]
[1763609942733,0.72,143.32,143.29,0.67]
[1763609944047,0.72,143.32,143.28,90.60154681]
[1763609944238,0.72,143.32,143.28,91.27154681]
[1763609944630,0.72,143.32,143.28,69.72912814]
[1763609944834,0.72,143.32,143.28,73.82319394]
[1763609945336,0.72,143.36,143.31,4.0940658]
[1763609945634,1.66,143.35,143.31,66.1740658]
[1763609945846,0.72,143.36,143.31,66.1740658]
[1763609946153,2.38,143.35,143.32,0.67]
[1763609946534,2.38,143.35,143.32,7.64721905]
[1763609947264,0.72,143.34,143.32,11.07128485]
[1763609950762,0.72,143.34,143.32,6.97721905]
[1763609950941,1.66,143.33,143.32,6.97721905]
[1763609951141,1.66,143.33,143.32,69.05721905]
[1763609951855,1.66,143.33,143.29,69.05854217]
[1763609951856,6.4740658,143.33,143.29,69.05854217]
[1763609952059,4.0940658,143.31,143.25,112.75]
[1763609952259,1.66,143.3,143.25,116.8440658]
[1763609952563,2.38,143.3,143.26,6.98027993]
[1763609952768,2.38,143.3,143.26,11.74434573]
[1763609954649,0.72,143.32,143.28,4.0940658]
[1763609954850,1.66,143.31,143.28,4.7640658]
[1763609955259,2.38,143.31,143.28,4.7640658]
[1763609955666,2.38,143.31,143.28,11.74330148]
[1763609955876,2.38,143.31,143.28,11.07330148]
[1763609956463,8.63792977,143.31,143.28,4.0940658]
[1763609956667,0.72,143.3,143.28,4.0940658]
[1763609956871,8.63792977,143.31,143.27,11.74376486]
[1763609957051,9.35792977,143.31,143.27,11.74376486]
[1763609957248,9.35792977,143.31,143.27,7.64969906]
[1763609957454,9.35792977,143.31,143.27,11.74376486]
[1763609957777,0.72,143.3,143.27,11.74376486]
[1763609957979,0.72,143.3,143.27,11.07376486]
[1763609959993,0.72,143.3,143.27,6.97969906]
[1763609960484,0.72,143.3,143.27,69.05969906]
[1763609960783,7.69848425,143.3,143.27,62.08]
[1763609960980,7.69848425,143.3,143.27,64.70244619]
[1763609961159,6.97848425,143.3,143.27,64.70244619]
[1763609961462,0.67,143.29,143.27,64.70244619]
[1763609961661,1.66,143.28,143.27,72.36225951]
[1763609961879,1.66,143.28,143.27,71.68225951]
[1763609963769,1.66,143.28,143.27,69.05981332]
[1763609963972,1.66,143.28,143.27,71.68225951]
[1763609964365,1.66,143.28,143.27,72.36225951]
[1763609969190,1.66,143.28,143.27,71.68225951]
[1763609971785,1.66,143.28,143.27,2.62244619]
[1763609974699,1.66,143.28,143.27,9.60227448]
[1763609974996,1.66,143.28,143.27,2.46764619]
[1763609975170,1.66,143.28,143.27,9.44747448]
[1763609975679,1.66,143.28,143.27,6.97982829]
[1763609977786,1.66,143.28,143.27,9.60227448]
[1763609979595,1.66,143.28,143.26,71.68259428]
[1763609979781,1.66,143.28,143.27,2.62244619]
[1763609980102,1.66,143.28,143.27,3.34244619]
[1763609981273,1.66,143.28,143.27,65.42244619]
[1763609981798,1.66,143.28,143.27,72.40227448]
[1763609982390,1.66,143.28,143.27,69.77982829]
[1763609982593,1.66,143.28,143.27,71.68227448]
[1763609984414,1.66,143.28,143.27,69.05982829]
[1763609984612,0.67,143.32,143.27,89.85184522]
[1763609984819,0.67,143.33,143.31,2.62244619]
[1763609985112,1.66,143.32,143.31,64.70244619]
[1763609985508,1.66,143.32,143.31,62.08]
[1763609985723,1.66,143.32,143.31,64.70244619]
[1763609986484,2.33,143.32,143.31,62.08]
[1763609988711,0.67,143.32,143.31,62.08]
[1763609988913,2.33,143.32,143.31,62.08]
[1763609989796,2.33,143.32,143.31,69.05788012]
[1763609990013,1.66,143.32,143.31,69.05788012]
[1763609990918,2.36,143.32,143.31,69.05788012]
[1763609991706,2.36,143.32,143.31,62.08]
[1763609991901,1.66,143.32,143.31,69.05788012]
[1763609992105,2.36,143.32,143.31,69.05788012]
[1763609992409,1.66,143.32,143.31,69.05788012]
[1763609993320,0.7,143.35,143.31,7.67788012]
[1763609993524,0.7,143.36,143.32,3.32244619]
[1763609993822,1.66,143.35,143.32,3.32244619]
[1763609994196,1.66,143.35,143.33,6.97690643]
[1763609994595,2.36,143.35,143.33,6.97690643]
[1763609994892,1.66,143.35,143.33,6.97690643]
[1763609995108,2.36,143.35,143.33,6.97690643]
[1763609995308,0.7,143.39,143.34,63.11127388]
[1763609995507,1.66,143.38,143.37,2.62244619]
[1763609995723,1.66,143.38,143.37,20.74340619]
[1763609996020,1.66,143.38,143.37,21.44340619]
[1763609996218,1.66,143.38,143.37,28.41836608]
[1763609996422,1.66,143.38,143.37,38.20719377]
[1763609996920,0.7,143.41,143.37,38.20719377]
[1763609997124,1.66,143.38,143.37,38.20719377]
[1763609998927,2.36,143.38,143.36,6.97537426]
[1763610000094,2.36,143.38,143.35,16.76476072]
[1763610000293,2.36,143.38,143.35,17.46476072]
[1763610000728,2.62244619,143.36,143.3,112.8]
[1763610000918,2.62244619,143.35,143.3,112.8]
[1763610001237,1.66,143.34,143.31,9.78882769]
[1763610001401,2.36,143.34,143.3,112.8]
[1763610001728,2.36,143.34,143.31,0.7]
[1763610001908,2.36,143.34,143.31,7.67773056]
[1763610002721,1.66,143.34,143.31,7.67773056]
[1763610002912,1.66,143.34,143.31,27.04487705]
[1763610003124,1.66,143.33,143.32,0.7]
[1763610003810,1.66,143.33,143.32,7.67739324]
[1763610006033,1.66,143.33,143.32,10.29983943]
[1763610008124,0.7,143.36,143.32,10.29983943]
[1763610008426,1.66,143.34,143.32,7.67739324]
[1763610008627,1.66,143.34,143.32,10.29983943]
[1763610008815,1.66,143.34,143.33,10.48882769]
[1763610009125,1.66,143.34,143.33,72.58882769]
[1763610009330,1.66,143.34,143.33,75.21127388]
[1763610009898,1.66,143.34,143.33,72.58882769]
[1763610010103,1.66,143.34,143.33,75.21127388]
[1763610010302,1.66,143.34,143.33,82.18818031]
[1763610011507,0.7,143.41,143.33,99.6304464]
[1763610011843,0.7,143.41,143.38,2.62244619]
[1763610011844,1.66,143.4,143.38,2.62244619]
[1763610012334,1.66,143.4,143.39,6.97398702]
[1763610012503,0.2,143.43,143.4,59.78882769]
[1763610012702,1.86,143.43,143.42,2.62244619]
[1763610012941,2.56,143.43,143.4,64.72244619]
[1763610013105,2.56,143.43,143.4,62.1]
[1763610014505,2.56,143.43,143.4,64.72244619]
[1763610014720,2.56,143.43,143.4,71.69574855]
[1763610015526,1.86,143.43,143.4,71.69574855]
[1763610015710,0.7,143.42,143.4,64.72244619]
[1763610015905,2.56,143.43,143.4,71.69589087]
[1763610016225,2.56,143.43,143.41,2.62244619]
[1763610016420,2.56,143.43,143.41,9.59521938]
[1763610017232,0.9,143.43,143.41,6.97277319]
[1763610017411,1.66,143.42,143.41,9.59521938]
[1763610017613,1.66,143.42,143.4,9.59581193]
[1763610017839,1.66,143.42,143.4,10.29581193]
[1763610018040,0.7,143.41,143.38,112.1]
[1763610018211,0.7,143.41,143.38,62.1]
[1763610018409,1.66,143.42,143.4,2.62244619]
[1763610018611,1.66,143.41,143.39,2.62244619]
[1763610019512,0.2,143.43,143.4,3.32244619]
[1763610019843,0.2,143.43,143.42,12.41127388]
[1763610020010,0.91,143.43,143.4,80.22096]
[1763610020212,0.71,143.42,143.4,82.84340619]
[1763610020410,0.71,143.42,143.4,20.74340619]
[1763610020614,0.71,143.42,143.37,2.62244619]
[1763610020615,3.33244619,143.42,143.37,2.62244619]
[1763610020824,0.71,143.42,143.38,4.09056546]
[1763610021027,0.71,143.41,143.38,4.09056546]
[1763610021228,1.66,143.4,143.39,4.09056546]
[1763610021431,0.71,143.42,143.39,4.09056546]
[1763610021743,1.66,143.41,143.38,13.87939315]
[1763610022127,2.37,143.41,143.38,13.87939315]
[1763610022326,1.66,143.4,143.38,13.87939315]
[1763610022526,1.66,143.4,143.39,6.97398702]
[1763610022960,1.66,143.4,143.39,11.06455248]
[1763610023147,1.66,143.4,143.38,20.85372362]
[1763610023327,2.37,143.4,143.38,16.76315816]
[1763610023656,1.66,143.4,143.38,11.06489593]
[1763610023948,1.66,143.4,143.39,4.75056546]
[1763610024325,1.66,143.42,143.39,4.75056546]
[1763610024524,1.66,143.42,143.4,11.06406615]
[1763610024734,2.37,143.42,143.4,11.06406615]
[1763610024932,1.66,143.42,143.4,73.16406615]
[1763610025433,1.66,143.42,143.4,73.82406615]
[1763610025634,0.2,143.43,143.42,18.12096]
[1763610025849,1.86,143.43,143.42,94.10035315]
[1763610026050,1.86,143.43,143.42,94.76035315]
[1763610026566,1.86,143.43,143.42,101.73288138]
[1763610027963,0.2,143.43,143.42,101.73288138]
[1763610028662,4.96056546,143.5,143.42,158.11740862]
[1763610028960,5.95056546,143.5,143.48,4.09056546]
[1763610029154,1.86,143.5,143.48,4.09056546]
[1763610030262,0.2,143.5,143.48,32.71035315]
[1763610030764,0.2,143.5,143.48,32.00035315]
[1763610030955,0.2,143.5,143.48,38.96996563]
[1763610031941,0.2,143.5,143.48,39.67996563]
[1763610034241,0.2,143.5,143.48,89.67996563]
[1763610034855,0.2,143.5,143.48,151.77996563]
[1763610041156,0.2,143.5,143.49,75.77939315]
[1763610041470,0.2,143.5,143.49,76.48939315]
[1763610043174,0.2,143.5,143.49,82.74851991]
[1763610043585,0.87,143.5,143.49,82.74851991]
[1763610043953,0.2,143.5,143.49,82.74851991]
[1763610047285,0.87,143.5,143.49,82.74851991]
[1763610047461,0.2,143.5,143.49,82.74851991]
[1763610050470,0.91,143.5,143.49,61.9]
[1763610050674,0.91,143.5,143.49,68.86912676]
[1763610050867,0.91,143.5,143.49,61.9]
[1763610051068,0.91,143.5,143.42,21.22994665]
[1763610051069,29.39080935,143.5,143.44,6.97127126]
[1763610051384,4.09056546,143.48,143.44,6.97127126]
[1763610051764,0.71,143.47,143.44,6.97127126]
[1763610052366,0.71,143.47,143.43,122.96247296]
[1763610053379,1.66,143.49,143.45,4.09056546]
[1763610053692,2.37,143.48,143.45,4.09056546]
[1763610053887,2.37,143.48,143.45,11.06117424]
[1763610054087,0.71,143.47,143.45,11.06117424]
[1763610059111,0.71,143.47,143.46,11.06114959]
[1763610059508,0.71,143.47,143.46,6.97058413]
[1763610060312,1.66,143.47,143.46,73.67114959]
[1763610060485,0.2,143.5,143.46,73.67114959]
[1763610060486,0.91,143.5,143.46,11.77114959]
[1763610060692,1.66,143.49,143.48,4.09056546]
[1763610060905,0.2,143.5,143.48,4.09056546]
[1763610061218,1.86,143.5,143.49,4.09056546]
[1763610061392,0.2,143.5,143.49,65.99056546]
[1763610061592,0.2,143.5,143.49,66.70056546]
[1763610061803,0.2,143.5,143.49,14.58939315]
[1763610062192,0.2,143.5,143.49,21.55851991]
[1763610062387,0.2,143.5,143.49,71.55851991]
[1763610063311,0.2,143.5,143.49,89.67947991]
[1763610063512,0.2,143.5,143.49,151.77947991]
[1763610064214,0.71,143.54,143.52,18.12096]
[1763610064414,0.2,143.55,143.53,4.80056546]
[1763610064602,0.2,143.55,143.54,4.09056546]
[1763610066401,0.2,143.55,143.54,11.05726463]
[1763610066600,0.91,143.55,143.53,62.1]
[1763610066806,0.91,143.55,143.53,69.06705701]
[1763610067016,0.71,143.54,143.53,69.06705701]
[1763610067802,2.37,143.54,143.53,69.06705701]
[1763610068003,0.2,143.55,143.53,73.86762247]
[1763610068190,0.71,143.54,143.53,73.15762247]
[1763610068397,0.71,143.54,143.51,6.96809423]
[1763610069721,4.80056546,143.54,143.51,62.1]
[1763610069906,4.80056546,143.53,143.51,62.1]
[1763610070107,0.71,143.52,143.51,62.1]
[1763610071101,0.71,143.54,143.51,69.06801357]
[1763610071303,0.71,143.53,143.51,69.06801357]
[1763610074323,0.71,143.53,143.51,62.1]
[1763610074505,4.80056546,143.53,143.51,62.1]
[1763610074700,4.09056546,143.52,143.51,62.1]
[1763610074928,4.80056546,143.52,143.51,62.1]
[1763610077332,6.46056546,143.52,143.51,62.1]
[1763610078033,0.71,143.52,143.51,62.1]
[1763610078211,2.37,143.52,143.51,62.1]
[1763610079318,2.37,143.52,143.49,69.06893407]
[1763610079521,0.71,143.51,143.49,69.06893407]
[1763610081040,7.16673114,143.55,143.51,50.0]
[1763610081211,0.2,143.55,143.53,4.09056546]
[1763610081413,1.66,143.54,143.53,4.80056546]
[1763610081614,0.2,143.55,143.54,0.71]
[1763610081824,0.2,143.55,143.54,64.58939315]
[1763610082041,1e-08,143.55,143.54,64.58939315]
[1763610082225,1e-08,143.55,143.54,114.58939315]
[1763610082722,1e-08,143.55,143.54,71.55609232]
[1763610082929,1e-08,143.55,143.54,70.07650188]
[1763610083227,1e-08,143.55,143.54,120.07650188]
[1763610084428,1e-08,143.55,143.54,70.07650188]
[1763610084641,1e-08,143.55,143.54,84.87648686]
[1763610084935,1e-08,143.55,143.54,88.19746188]
[1763610086124,0.2,143.65,143.6,9.78882769]
[1763610086329,1.66,143.64,143.61,2.61097502]
[1763610086631,3.30097502,143.63,143.58,112.1]
[1763610086839,0.69,143.63,143.57,19.36504614]
[1763610087031,0.69,143.62,143.58,2.61097502]
[1763610087536,0.69,143.62,143.59,2.61097502]
[1763610087736,7.16149939,143.65,143.59,2.61097502]
[1763610087737,1.66,143.61,143.59,3.32097502]
[1763610087938,1.66,143.62,143.6,2.61097502]
[1763610088121,1.66,143.62,143.59,0.71]
[1763610088122,1.66,143.62,143.59,12.39980271]
[1763610088646,2.35,143.62,143.59,12.39980271]
[1763610088843,2.35,143.62,143.59,9.78882769]
[1763610089143,2.35,143.62,143.6,6.9637883]
[1763610089318,0.69,143.61,143.6,6.9637883]
[1763610091132,0.69,143.71,143.67,9.78882769]
[1763610091334,0.69,143.69,143.66,50.0]
[1763610092167,4.47097502,143.7,143.69,27.90978769]
[1763610092168,0.2,143.7,143.69,27.90978769]
[1763610092331,0.2,143.7,143.69,30.52076271]
[1763610092531,0.2,143.7,143.69,31.23076271]
[1763610093130,0.2,143.7,143.69,38.19018925]
[1763610093441,1.86,143.74,143.72,9.78882769]
[1763610093621,1.86,143.74,143.73,2.61097502]
[1763610093822,0.2,143.74,143.73,12.39980271]
[1763610094230,0.89,143.74,143.71,50.0]
[1763610094823,1.66,143.73,143.71,56.98009286]
[1763610095033,1.86,143.74,143.73,6.95748973]
[1763610096131,9.53009286,143.74,143.69,9.78882769]
[1763610096339,0.69,143.73,143.69,16.7481558]
[1763610097126,0.69,143.73,143.69,41.12681501]
[1763610097856,0.69,143.73,143.7,6.98009286]
[1763610098152,0.69,143.73,143.69,41.12681501]
[1763610098351,0.69,143.73,143.69,34.14672215]
[1763610098561,0.69,143.73,143.69,41.12681501]
[1763610104656,1.86,143.74,143.71,6.98009286]
[1763610105052,0.2,143.74,143.71,7.69009286]
[1763610105261,1.66,143.73,143.72,7.69009286]
[1763610105561,2.35,143.73,143.7,9.78882769]